{"text_format":"1","workbook":"xlsx","n_sheets":6,"sheets":["Formulae","Tolerance","Area_Volume","Area","Volume","Pythagoras_Gradient"],"not_rendered":{"charts":0,"images":4,"macros":1,"external_links":0,"defined_names":6,"comments":0,"pivot_tables":0},"unopened":[],"bounds":{"document_bytes":16777216,"sheet_cells":100000,"rows_first":2000,"rows_last":500,"rows_between":2000,"halvings":0,"cell_chars":16384,"cell_head_chars":4096},"cells_cut":0,"cells_raw":0,"read":"whole","date_system":"1900"}

{"sheet":"Formulae","index":0,"n_rows":20,"n_cols":55,"rows_kept":20,"cut":false,"hidden":false,"merged":[[12,22,12,23],[12,26,12,27],[1,2,3,29],[17,22,17,24]]}
[]
[null,null,"National 4 - Lifeskills Practice"]
[]
[]
[]
[null,null,{"$f":"\"Q (a)  Daniel is cooking a \"&AO7&\"kg turkey for Christmas dinner.\"","v":"Q (a)  Daniel is cooking a 9kg turkey for Christmas dinner."}]
[null,null,null,null,null,null,null,null,null,null,null,null,null,null,null,null,null,null,null,null,null,null,null,null,null,null,null,null,null,null,null,null,null,null,null,null,null,null,null,null,{"$f":"ROUND(RAND()*(13-3)+3,0)","v":9},null,null,null,null,null,null,null,null,null,null,null,{"$f":"ROUND(RAND()*(8-1)+1,0)","v":7}]
[null,null,"       To cook the turkey property he follows the instructions given.",null,null,null,null,null,null,null,null,null,null,null,null,null,null,null,null,null,null,null,null,null,null,null,null,null,null,null,null,null,null,null,null,null,null,null,null,null,{"$f":"ROUND(RAND()*(10-3)+3,0)*5","v":15},null,null,null,null,null,null,null,null,null,null,null,null,1,"Gill"]
[null,null,null,null,null,null,null,null,null,null,null,null,null,null,null,null,null,null,null,null,null,null,null,null,null,null,null,null,null,null,null,null,null,null,null,null,null,null,null,null,{"$f":"ROUND(RAND()*(10-3)+3,0)*5","v":50},null,null,null,null,null,null,null,null,null,null,null,null,2,"Anderson"]
[null,null,"        Cooking time",null,null,null,null,null,null,null,null,"T","=",{"$f":"AO8","v":15},"w","+",{"$f":"AO9","v":50},null,null,null,null,"w = weight in kilogramms",null,null,null,null,null,null,null,null,null,null,null,null,null,null,null,null,null,null,{"$f":"AO8*AO7+AO9","v":185},null,null,null,null,null,null,null,null,null,null,null,null,3,"Rodgers"]
[null,null,null,null,null,null,null,null,null,null,null,null,null,null,null,null,null,null,null,null,null,"T= time in minutes",null,null,null,null,null,null,null,null,null,null,null,null,null,null,null,null,null,null,{"$f":"CONVERT(AO10,\"mn\",\"hr\")","v":3.0833333333333335},null,null,null,null,null,null,null,null,null,null,null,null,4,"McDermott"]
[null,null,null,null,null,null,null,null,null,null,null,null,null,null,null,null,null,null,null,null,null,null,null,null,null,null,null,null,null,null,null,null,null,null,null,null,null,null,null,null,{"$f":"TRUNC(AO11)","v":3},null,null,null,null,null,null,null,null,null,null,null,null,5,"Jordan"]
[null,null,"How long in hours and minutes will the turkey take to cook.",null,null,null,null,null,null,null,null,null,null,null,null,null,null,null,null,null,null,null,null,null,"hrs",null,null,null,"mins",null,null,null,null,null,null,null,null,null,null,null,{"$f":"ROUND((AO11-AO12)*60,0)","v":5},null,null,null,null,null,null,null,null,null,null,null,null,6,"Daly"]
[null,null,null,null,null,null,null,null,null,null,null,null,null,null,null,null,null,null,null,null,null,null,null,null,null,null,null,null,null,null,null,null,null,null,null,null,null,null,null,null,{"$f":"CONCATENATE(AO12,AO13)","v":"35"},null,null,null,null,null,null,null,null,null,null,null,null,7,"Dickie"]
[null,null,null,null,null,null,null,null,null,null,null,null,null,null,null,null,null,null,null,null,null,null,null,null,null,null,null,null,null,null,null,null,null,null,null,null,null,null,null,null,{"$f":"ROUND(RAND()*(17-14)+14,0)","v":15}]
[null,null,{"$f":"\" (b)  The Christmas Dinner needs to be ready by \"&AO17&\".\"","v":" (b)  The Christmas Dinner needs to be ready by 15:50."},null,null,null,null,null,null,null,null,null,null,null,null,null,null,null,null,null,null,null,null,null,null,null,null,null,null,null,null,null,null,null,null,null,null,null,null,null,{"$f":"ROUND(RAND()*(11-1)+1,0)*5","v":50}]
[null,null,null,null,null,null,null,null,null,null,null,null,null,null,null,null,null,null,null,null,null,null,null,null,null,null,null,null,null,null,null,null,null,null,null,null,null,null,null,null,{"$f":"CONCATENATE(AO15,\":\",AO16)","v":"15:50"}]
[null,null,null,"   At what time will the turkey need to be in the oven.",null,null,null,null,null,null,null,null,null,null,null,null,null,null,null,null,null,null,null,null,null,"(24 hr format)",null,null,null,null,null,null,null,null,null,null,null,null,null,null,{"$f":"TIME(AO15,AO16,0)","v":"15:50:00"}]
[null,null,null,null,null,null,null,null,null,null,null,null,null,null,null,null,null,null,null,null,null,null,null,null,null,null,null,null,null,null,null,null,null,null,null,null,null,null,null,null,{"$f":"TIME(AO12,AO13,0)","v":"03:05:00"}]
[null,null,null,null,null,null,null,null,null,null,null,null,null,null,null,null,null,null,null,null,null,null,null,null,null,null,null,null,null,null,null,null,null,null,null,null,null,null,null,null,{"$f":"AO18-AO19","v":"12:45:00"}]

{"sheet":"Tolerance","index":1,"n_rows":17,"n_cols":50,"rows_kept":17,"cut":false,"hidden":false,"merged":[[1,2,3,29],[16,5,16,6]]}
[]
[null,null,"National 4 - Lifeskills Practice"]
[]
[null,null,null,null,null,null,null,null,null,null,null,null,null,null,null,null,null,null,null,null,null,null,null,null,null,null,null,null,null,null,null,null,null,null,null,null,null,null,null,null,null,null,{"$f":"ROUND(RAND()*(4-2)+2,0)*15","v":45},{"$f":"ROUND(RAND()*(5-2)+2,0)","v":4},null,null,{"$f":"AQ4-AR4","v":41},{"$f":"AQ4+AR4","v":49},{"$f":"ROUND(RAND()*(5-1)+1,0)","v":2},{"$f":"ROUND(RAND()*(1-0)+0,0)","v":0}]
[]
[null,null,{"$f":"\"Q   A sample of six boxes contains the following number of bags of crisps per box.\"","v":"Q   A sample of six boxes contains the following number of bags of crisps per box."},null,null,null,null,null,null,null,null,null,null,null,null,null,null,null,null,null,null,null,null,null,null,null,null,null,null,null,null,null,null,null,null,null,null,null,null,null,null,1,{"$f":"IF($AW$4=1,IF($AX$4=1,$AV$4+ROUND(RAND()*(2-1)+1,0),$AU$4-ROUND(RAND()*(2-1)+1,0)),ROUND(RAND()*($AV$4-$AU$4)+$AU$4,0))","v":41}]
[null,null,null,null,null,null,null,null,null,null,null,null,null,null,null,null,null,null,null,null,null,null,null,null,null,null,null,null,null,null,null,null,null,null,null,null,null,null,null,null,null,2,{"$f":"IF($AW$4=2,IF($AX$4=1,$AV$4+ROUND(RAND()*(2-1)+1,0),$AU$4-ROUND(RAND()*(2-1)+1,0)),ROUND(RAND()*($AV$4-$AU$4)+$AU$4,0))","v":39}]
[null,null,null,null,null,null,null,null,null,null,null,null,null,null,null,null,null,null,null,null,null,null,null,null,null,null,null,null,null,null,null,null,null,null,null,null,null,null,null,null,null,3,{"$f":"IF($AW$4=3,IF($AX$4=1,$AV$4+ROUND(RAND()*(2-1)+1,0),$AU$4-ROUND(RAND()*(2-1)+1,0)),ROUND(RAND()*($AV$4-$AU$4)+$AU$4,0))","v":45}]
[null,null,null,null,{"$f":"AQ6","v":41},null,null,{"$f":"AQ7","v":39},null,null,{"$f":"AQ8","v":45},null,null,{"$f":"AQ9","v":41},null,null,{"$f":"AQ10","v":42},null,{"$f":"AQ11","v":44},null,null,null,null,null,null,null,null,null,null,null,null,null,null,null,null,null,null,null,null,null,null,4,{"$f":"IF($AW$4=4,IF($AX$4=1,$AV$4+ROUND(RAND()*(2-1)+1,0),$AU$4-ROUND(RAND()*(2-1)+1,0)),ROUND(RAND()*($AV$4-$AU$4)+$AU$4,0))","v":41}]
[null,null,null,null,null,null,null,null,null,null,null,null,null,null,null,null,null,null,null,null,null,null,null,null,null,null,null,null,null,null,null,null,null,null,null,null,null,null,null,null,null,5,{"$f":"IF($AW$4=5,IF($AX$4=1,$AV$4+ROUND(RAND()*(2-1)+1,0),$AU$4-ROUND(RAND()*(2-1)+1,0)),ROUND(RAND()*($AV$4-$AU$4)+$AU$4,0))","v":42}]
[null,null,null,null,null,null,null,null,null,null,null,null,null,null,null,null,null,null,null,null,null,null,null,null,null,null,null,null,null,null,null,null,null,null,null,null,null,null,null,null,null,6,{"$f":"IF($AW$4=6,IF($AX$4=1,$AV$4+ROUND(RAND()*(2-1)+1,0),$AU$4-ROUND(RAND()*(2-1)+1,0)),ROUND(RAND()*($AV$4-$AU$4)+$AU$4,0))","v":44}]
[null,null,"If then tolerance is",null,null,null,null,null,null,null,null,null,null,null,null,null,null,null,null,null,null,null,null,null,null,null,null,null,null,null,null,null,null,null,null,null,null,null,null,null,null,{"$f":"LOOKUP(AW4,AP6:AP11,AQ6:AQ11)","v":39}]
[]
[null,null,null,null,null,null,null,null,null,null,null,null,null,null,null,null,null,null,null,null,null,null,null,null,null,null,null,null,null,null,null,null,null,null,null,null,null,null,null,null,null,null,null,null,null,"V"]
[null,null,{"$f":"\"Which of these boxes of crisps would be outside a tolerance of ( \"&AQ4&\" ± \"&AR4&\" ).\"","v":"Which of these boxes of crisps would be outside a tolerance of ( 45 ± 4 )."}]
[]
[null,null,"Answer ",null,null,null,null,null,null,null,null,null,null,null,null,null,null,null,null,null,null,null,null,null,null,null,null,null,null,null,null,null,null,null,null,null,null,null,null,null,null,null,null,null,null,"H"]

{"sheet":"Area_Volume","index":2,"n_rows":36,"n_cols":44,"rows_kept":36,"cut":false,"hidden":false,"merged":[[22,25,22,27],[26,25,26,27],[30,25,30,27],[35,25,35,27],[10,21,11,28],[14,7,14,16],[12,18,13,20],[9,5,13,6],[18,25,18,27],[1,2,3,29],[9,12,9,15],[10,8,10,10],[11,10,13,11],[10,15,11,16]]}
[]
[null,null,"National 4 - Lifeskills Practice"]
[]
[]
[]
[null,null,{"$f":"\"Q   Stuart plans to paint the inside of his livingroom walls.\"","v":"Q   Stuart plans to paint the inside of his livingroom walls."},null,null,null,null,null,null,null,null,null,null,null,null,null,null,null,null,null,null,null,null,null,null,null,null,null,null,null,null,null,null,null,null,null,null,null,null,null,null,null,{"$f":"ROUND(RAND()*(1-1)+1,0)","v":1},{"$f":"CONCATENATE(AQ6,\"m\")","v":"1m"}]
[null,null,null,null,null,null,null,null,null,null,null,null,null,null,null,null,null,null,null,null,null,null,null,null,null,null,null,null,null,null,null,null,null,null,null,null,null,null,null,null,null,null,{"$f":"ROUND(RAND()*(4-3)+3,0)*0.5","v":2},{"$f":"CONCATENATE(AQ7,\"m\")","v":"2m"}]
[null,null,null,null,null,null,null,null,null,null,null,null,null,null,null,null,null,null,null,null,null,null,null,null,null,null,null,null,null,null,null,null,null,null,null,null,null,null,null,null,null,null,{"$f":"ROUND(RAND()*(12-8)+8,0)","v":10},"10m"]
[null,null,null,null,null,null,null,null,null,null,null,null,null,null,null,null,null,null,null,null,null,null,null,null,null,null,null,null,null,null,null,null,null,null,null,null,null,null,null,null,null,null,{"$f":"AQ8-ROUND(RAND()*(3-2)+2,0)","v":7},"7m"]
[null,null,null,null,null,{"$f":"AR10","v":"3.5m"},null,null,null,null,null,null,{"$f":"AR7","v":"2m"},null,null,null,null,null,null,null,null,null,null,null,null,null,null,null,null,null,null,null,null,null,null,null,null,null,null,null,null,null,{"$f":"AQ9/2","v":3.5},"3.5m"]
[null,null,null,null,null,null,null,null,{"$f":"AR6","v":"1m"},null,null,null,null,null,null,{"$f":"AR6","v":"1m"},null,null,null,null,null,{"$f":"\"1 litre tin of paint covers \"&AQ11&\" square metres.\"","v":"1 litre tin of paint covers 14 square metres."},null,null,null,null,null,null,null,null,null,null,null,null,null,null,null,null,null,null,null,null,{"$f":"ROUND(RAND()*(20-10)+10,0)","v":14}]
[null,null,null,null,null,null,null,null,null,null,{"$f":"AR7","v":"2m"}]
[null,null,null,null,null,null,null,null,null,null,null,null,null,null,null,null,null,null,{"$f":"AR9","v":"7m"}]
[]
[null,null,null,null,null,null,null,{"$f":"AR8","v":"10m"}]
[]
[null,null,null,"The garage is in the shape of a cuboid, with dimensions as shown."]
[]
[null,null,null,"(a) What is the total area of the livingroom walls?",null,null,null,null,null,null,null,null,null,null,null,null,null,null,null,null,null,null,null,null,null,null,null,null,"m2",null,null,null,null,null,null,null,null,null,null,null,null,null,{"$f":"(AQ8*AQ10)+2*(AQ9*AQ10)+(AQ8*AQ10-2*AQ6*AQ7)","v":115},"m2"]
[]
[null,null,null,"(b) What volume of paint must Stuart buy to paint the walls of his livingroom?"]
[]
[null,null,null,null,null,null,null,null,null,null,null,null,null,null,null,"(Answer to 1 decimal place)",null,null,null,null,null,null,null,null,null,null,null,null,"litres",null,null,null,null,null,null,null,null,null,null,null,null,null,{"$f":"ROUND(AQ19/AQ11,1)","v":8.1999999999999993},"litres"]
[]
[null,null,null,"(c) Paint is sold in 1 litre tins. How many tins of paint will Stuart need to buy?"]
[]
[null,null,null,null,null,null,null,null,null,null,null,null,null,null,null,null,null,null,null,null,null,null,null,null,null,null,null,null,"tins",null,null,null,null,null,null,null,null,null,null,null,null,null,{"$f":"ROUNDUP(AQ23,0)","v":9},"tins"]
[null,null,null,null,null,null,null,null,null,null,null,null,null,null,null,null,null,null,null,null,null,null,null,null,null,null,null,null,null,null,null,null,null,null,null,null,null,null,null,null,null,null,{"$f":"ROUND(RAND()*(10-4)+4,0)","v":8}]
[null,null,null,{"$f":"\"(d) Each tin costs £\"&TEXT(AQ30,\"0.00\")&\". What will be the cost of painting his livingroom?\"","v":"(d) Each tin costs £17.50. What will be the cost of painting his livingroom?"},null,null,null,null,null,null,null,null,null,null,null,null,null,null,null,null,null,null,null,null,null,null,null,null,null,null,null,null,null,null,null,null,null,null,null,null,null,null,{"$f":"2*AQ28+1","v":17}]
[null,null,null,null,null,null,null,null,null,null,null,null,null,null,null,null,null,null,null,null,null,null,null,null,null,null,null,null,null,null,null,null,null,null,null,null,null,null,null,null,null,null,{"$f":"AQ29+0.5","v":17.5}]
[null,null,null,null,null,null,null,null,null,null,null,null,null,null,null,null,null,null,null,null,null,null,null,null,"£",null,null,null,null,null,null,null,null,null,null,null,null,null,null,null,null,null,{"$f":"AQ30*AQ27","v":157.5}]
[]
[null,null,null,"(e) New skirting boards need to be fitted around the walls of the livingroom"]
[null,null,null,null,"at floor level (excluding the door)."]
[]
[null,null,null,null," Calculate the total length of skirting board needed.",null,null,null,null,null,null,null,null,null,null,null,null,null,null,null,null,null,null,null,null,null,null,null,"m",null,null,null,null,null,null,null,null,null,null,null,null,null,{"$f":"2*AQ8+2*AQ9-1","v":33}]

{"sheet":"Area","index":3,"n_rows":21,"n_cols":46,"rows_kept":21,"cut":false,"hidden":false,"merged":[[20,23,20,24],[18,23,18,24],[1,2,3,29],[15,25,15,26],[16,25,16,26],[10,18,10,19],[11,18,11,19],[12,18,12,19]]}
[]
[null,null,"National 4 - Lifeskills Practice"]
[]
[]
[]
[null,null,{"$f":"\" Q       Liam has a cupboard to store his music CD's.\"","v":" Q       Liam has a cupboard to store his music CD's."},null,null,null,null,null,null,null,null,null,null,null,null,null,null,null,null,null,null,null,null,null,null,null,null,null,null,null,null,null,null,null,null,null,null,null,null,null,null,"CD's"]
[null,null,null,null,{"$f":"\"The cupboard has \"&AO12&\" shelves.\"","v":"The cupboard has 5 shelves."},null,null,null,null,null,null,null,null,null,null,null,null,null,null,null,null,null,null,null,null,null,null,null,null,null,null,null,null,null,null,null,null,null,null,null,{"$f":"ROUND(RAND()*(25-15)+15,0)","v":25},"Height"]
[null,null,null,null,null,null,null,null,null,null,null,null,null,null,null,null,null,"CD",null,null,null,null,null,null,null,null,null,null,null,null,null,null,null,null,null,null,null,null,null,null,{"$f":"ROUND(RAND()*(6-3)+3,0)*0.5","v":2},"width"]
[null,null,null,null,null,null,null,null,null,null,null,null,null,null,null,null,null,null,null,null,null,null,null,null,null,null,null,null,null,null,null,null,null,null,null,null,null,null,null,null,{"$f":"ROUND(RAND()*(28-16)+16,0)*0.5","v":8},"length"]
[]
[null,null,null,null,null,null,null,null,null,null,null,null,null,null,null,null,"length",null,{"$f":"AO9","v":8},null,"cm",null,null,null,null,null,null,null,null,null,null,null,null,null,null,null,null,null,null,null,null,"Shelves"]
[null,null,null,null,null,null,null,null,null,null,null,null,null,null,null,null,"Height",null,{"$f":"AO7","v":25},null,"cm",null,null,null,null,null,null,null,null,null,null,null,null,null,null,null,null,null,null,null,{"$f":"ROUND(RAND()*(6-3)+3,0)","v":5},"shelves",null,null,"Vertical"]
[null,null,null,null,null,null,null,null,null,null,null,null,null,null,null,null,"Width",null,{"$f":"AO8","v":2},null,"cm",null,null,null,null,null,null,null,null,null,null,null,null,null,null,null,null,null,null,null,{"$f":"AO7","v":25},"height",null,null,"CD's"]
[null,null,null,null,null,null,null,null,null,null,null,null,null,null,null,null,null,null,null,null,null,null,null,null,null,null,null,null,null,null,null,null,null,null,null,null,null,null,null,null,{"$f":"IF(AQ14=0,ROUND(RAND()*(40-20)+20,0)*AO8+1,ROUND(RAND()*(40-20)+20,0)*AO8-1)","v":43},"width",{"$f":"ROUND(RAND()*(1-0)+0,0)","v":0},null,{"$f":"ROUNDDOWN(AO14/AO8,0)*AO12","v":105},"V"]
[null,null,null,null,null,null,null,null,null,null,null,null,null,null,null,null,null,null,null,null,null,null,null,null,null,null,null,null,null,null,null,null,null,null,null,null,null,null,null,null,null,null,null,null,{"$f":"ROUNDDOWN(AO14/AO7,0)","v":1}]
[null,null,null,null,null,null,null,null,null,null,null,null,null,null,null,null,null,null,null,"Length cupboard",null,null,null,null,null,{"$f":"AO14","v":43},null,"cm",null,null,null,null,null,null,null,null,null,null,null,null,null,null,null,null,{"$f":"ROUNDDOWN(AO7/AO8,0)","v":12}]
[null,null,null,null,null,null,null,null,null,null,null,null,null,null,null,null,null,null,null,"Shelf Height",null,null,null,null,null,{"$f":"AO13","v":25},null,"cm",null,null,null,null,null,null,null,null,null,null,null,null,null,null,null,null,{"$f":"AS16*AS15*AO12","v":60},"H"]
[null,null,null,null,null,null,null,null,null,null,null,null,null,null,null,null,null,null,null,null,null,null,null,null,null,null,null,null,null,null,null,null,null,null,null,null,null,null,null,null,null,null,null,null,{"$f":"IF(AS14>AS17,1,0)","v":1}]
[null,null,"(a) How many book's stacked vertically can the cupboard hold.",null,null,null,null,null,null,null,null,null,null,null,null,null,null,null,null,null,null,null,null,null,null,"book's"]
[]
[null,null,"(b) How many book's stacked horizontally can the cupboard hold.",null,null,null,null,null,null,null,null,null,null,null,null,null,null,null,null,null,null,null,null,null,null,"Book's"]

{"sheet":"Volume","index":4,"n_rows":26,"n_cols":44,"rows_kept":26,"cut":false,"hidden":false,"merged":[[2,2,4,29],[17,11,17,13],[12,15,12,17],[21,25,21,27],[25,25,25,27]]}
[]
[]
[null,null,"National 4 - Lifeskills Practice"]
[]
[null,null,null,null,null,null,null,null,null,null,null,null,null,null,null,null,null,null,null,null,null,null,null,null,null,null,null,null,null,null,null,null,null,null,null,null,null,null,null,null,null,null,{"$f":"ROUND(RAND()*(10-4)+4,0)","v":8},{"$f":"CONCATENATE(AQ5,\"cm\")","v":"8cm"}]
[null,null,null,null,null,null,null,null,null,null,null,null,null,null,null,null,null,null,null,null,null,null,null,null,null,null,null,null,null,null,null,null,null,null,null,null,null,null,null,null,null,null,{"$f":"ROUND(RAND()*(30-15)+15,0)","v":16},{"$f":"CONCATENATE(AQ6,\"cm\")","v":"16cm"}]
[null,null,"Martin has business making scented soap bars.",null,null,null,null,null,null,null,null,null,null,null,null,null,null,null,null,null,null,null,null,null,null,null,null,null,null,null,null,null,null,null,null,null,null,null,null,null,null,null,{"$f":"AQ5*AQ6*AQ5","v":1024}]
[null,null,{"$f":"\"Each soap bar has a square base of \"&AQ5&\" cm and a height of \"&AQ6&\" cm, as shown.\"","v":"Each soap bar has a square base of 8 cm and a height of 16 cm, as shown."},null,null,null,null,null,null,null,null,null,null,null,null,null,null,null,null,null,null,null,null,null,null,null,null,null,null,null,null,null,null,null,null,null,null,null,null,null,null,null,{"$f":"ROUND(RAND()*(5-1)+1,0)*10000","v":30000}]
[null,null,null,null,null,null,null,null,null,null,null,null,null,null,null,null,null,null,null,null,null,null,null,null,null,null,null,null,null,null,null,null,null,null,null,null,null,null,null,null,null,null,{"$f":"AQ8/1000","v":30}]
[]
[]
[]
[null,null,null,null,null,null,null,null,null,null,null,null,null,null,null,{"$f":"AR6","v":"16cm"}]
[]
[]
[]
[]
[null,null,null,null,null,null,null,null,null,null,null,{"$f":"AR5","v":"8cm"}]
[]
[null,null,{"$f":"\"He buys liquid soap in \"&AQ9&\" litre tubs.\"","v":"He buys liquid soap in 30 litre tubs."},null,null,null,null,null,null,null,null,null,null,null,"( 1000cm3 = 1 litre )"]
[]
[null,null,"(a)   How many deluxe soap bars can he make from one tub of liquid soap?",null,null,null,null,null,null,null,null,null,null,null,null,null,null,null,null,null,null,null,null,null,null,null,null,null,"bars",null,null,null,null,null,null,null,null,null,null,null,null,null,{"$f":"ROUNDDOWN(AQ8/AQ7,0)","v":29}]
[]
[null,null,{"$f":"\"(b)   If Martin \"&AQ25&\" the volume of his soap bars,\"","v":"(b)   If Martin doubles the volume of his soap bars,"},null,null,null,null,null,null,null,null,null,null,null,null,null,null,null,null,null,null,null,null,null,null,null,null,null,null,null,null,null,null,null,null,null,null,null,null,null,null,null,{"$f":"ROUND(RAND()*(3-2)+2,0)","v":2}]
[null,null,null,"   how many soap bars will he be able to make with one tub of liquid soap?",null,null,null,null,null,null,null,null,null,null,null,null,null,null,null,null,null,null,null,null,null,null,null,null,null,null,null,null,null,null,null,null,null,null,null,null,null,null,{"$f":"IF(AQ24=3,\"trebles\",\"doubles\")","v":"doubles"}]
[null,null,null,null,null,null,null,null,null,null,null,null,null,null,null,null,null,null,null,null,null,null,null,null,null,null,null,null,"bars",null,null,null,null,null,null,null,null,null,null,null,null,null,{"$f":"ROUNDDOWN(AQ8/(AQ7*AQ24),0)","v":14}]

{"sheet":"Pythagoras_Gradient","index":5,"n_rows":26,"n_cols":50,"rows_kept":26,"cut":false,"hidden":false,"merged":[[25,21,25,22],[1,2,3,29],[20,14,20,16],[15,17,19,17],[16,11,17,14],[22,21,22,22]]}
[]
[null,null,"National 4 - Lifeskills Practice"]
[null,null,null,null,null,null,null,null,null,null,null,null,null,null,null,null,null,null,null,null,null,null,null,null,null,null,null,null,null,null,null,null,null,null,{"$f":"ROUND(RAND()*(2-0)+0,0)","v":0}]
[null,null,null,null,null,null,null,null,null,null,null,null,null,null,null,null,null,null,null,null,null,null,null,null,null,null,null,null,null,null,null,null,null,null,{"$f":"2*ROUND(RAND()*(200-100)+100,0)","v":224},null,null,null,null,null,null,null,{"$f":"ROUND(RAND()*(4-2)+2,0)*15","v":30},{"$f":"ROUND(RAND()*(5-2)+2,0)","v":3},null,null,{"$f":"AQ4-AR4","v":27},{"$f":"AQ4+AR4","v":33},{"$f":"ROUND(RAND()*(5-1)+1,0)","v":2},{"$f":"ROUND(RAND()*(1-0)+0,0)","v":1}]
[null,null,null,null,null,null,null,null,null,null,null,null,null,null,null,null,null,null,null,null,null,null,null,null,null,null,null,null,null,null,null,null,null,null,{"$f":"ROUND(TAN(AJ5*PI()/180),2)","v":2.61},{"$f":"ROUND(RAND()*(72-68)+68,0)","v":69}]
[null,null,{"$f":"\"Q   For Health and Safety reasons the gradient of a ladder when resting again a wall \"","v":"Q   For Health and Safety reasons the gradient of a ladder when resting again a wall "},null,null,null,null,null,null,null,null,null,null,null,null,null,null,null,null,null,null,null,null,null,null,null,null,null,null,null,null,null,null,null,{"$f":"ROUND(TAN(AJ6*PI()/180),2)","v":5.14},{"$f":"ROUND(RAND()*(80-77)+77,0)","v":79},null,null,null,null,null,1,{"$f":"IF($AW$4=1,IF($AX$4=1,$AV$4+ROUND(RAND()*(2-1)+1,0),$AU$4-ROUND(RAND()*(2-1)+1,0)),ROUND(RAND()*($AV$4-$AU$4)+$AU$4,0))","v":27}]
[null,null,null,{"$f":"\" must be between \"&AI5&\" and \"&AI6&\".\"","v":" must be between 2.61 and 5.14."},null,null,null,null,null,null,null,null,null,null,null,null,null,null,null,null,null,null,null,null,null,null,null,null,null,null,null,null,null,null,{"$f":"IF(AI3=2,ROUND(RAND()*(AI6-AI5)+AI5,0),IF(AI3=1,AI5-ROUND(RAND()*(0.1-0.04)+0.04,2),AI6+(ROUND(RAND()*(0.1-0.04)+0.04,2))))","v":5.2299999999999995},null,null,null,null,null,null,2,{"$f":"IF($AW$4=2,IF($AX$4=1,$AV$4+ROUND(RAND()*(2-1)+1,0),$AU$4-ROUND(RAND()*(2-1)+1,0)),ROUND(RAND()*($AV$4-$AU$4)+$AU$4,0))","v":35}]
[null,null,null,null,null,null,null,null,null,null,null,null,null,null,null,null,null,null,null,null,null,null,null,null,null,null,null,null,null,null,null,null,null,null,{"$f":"AI4/AI7","v":42.829827915869984},null,null,null,null,null,null,3,{"$f":"IF($AW$4=3,IF($AX$4=1,$AV$4+ROUND(RAND()*(2-1)+1,0),$AU$4-ROUND(RAND()*(2-1)+1,0)),ROUND(RAND()*($AV$4-$AU$4)+$AU$4,0))","v":31}]
[null,null,null,null,null,null,null,null,null,null,null,null,null,null,null,null,null,null,null,null,null,null,null,null,null,null,null,null,null,null,null,null,null,null,{"$f":"SQRT(AI8*AI8+AI4*AI4)","v":228.05787458297297},null,null,null,null,null,null,4,{"$f":"IF($AW$4=4,IF($AX$4=1,$AV$4+ROUND(RAND()*(2-1)+1,0),$AU$4-ROUND(RAND()*(2-1)+1,0)),ROUND(RAND()*($AV$4-$AU$4)+$AU$4,0))","v":30}]
[null,null,null,null,null,null,null,null,null,null,null,null,null,null,null,null,null,null,null,null,null,null,null,null,null,null,null,null,null,null,null,null,null,null,{"$f":"IF(AI3=2,\"Yes\",\"No\")","v":"No"},null,null,null,null,null,null,5,{"$f":"IF($AW$4=5,IF($AX$4=1,$AV$4+ROUND(RAND()*(2-1)+1,0),$AU$4-ROUND(RAND()*(2-1)+1,0)),ROUND(RAND()*($AV$4-$AU$4)+$AU$4,0))","v":33}]
[null,null,null,null,null,null,null,null,null,null,null,null,null,null,null,null,null,null,null,null,null,null,null,null,null,null,null,null,null,null,null,null,null,null,null,null,null,null,null,null,null,6,{"$f":"IF($AW$4=6,IF($AX$4=1,$AV$4+ROUND(RAND()*(2-1)+1,0),$AU$4-ROUND(RAND()*(2-1)+1,0)),ROUND(RAND()*($AV$4-$AU$4)+$AU$4,0))","v":32}]
[null,null,null,null,null,null,null,null,null,null,null,null,null,null,null,null,null,null,null,null,null,null,null,null,null,null,null,null,null,null,null,null,null,null,null,null,null,null,null,null,null,{"$f":"LOOKUP(AW4,AP6:AP11,AQ6:AQ11)","v":35}]
[]
[null,null,"The diagram below represents the ladder against the wall.",null,null,null,null,null,null,null,null,null,null,null,null,null,null,null,null,null,null,null,null,null,null,null,null,null,null,null,null,null,null,null,null,null,null,null,null,null,null,null,null,null,null,"V"]
[]
[null,null,null,null,null,null,null,null,null,null,null,null,null,null,null,null,null,"h"]
[null,null,null,null,null,null,null,null,null,null,null,{"$f":"ROUND(AI9,2)","v":228.06}]
[null,null,null,null,null,null,null,null,null,null,null,null,null,null,null,null,null,null,null,null,null,"All measures are in cm"]
[]
[]
[null,null,null,null,null,null,null,null,null,null,null,null,null,null,{"$f":"ROUND(AI8,2)","v":42.83}]
[]
[null,null,"(a)   Find the height h of the ladder to the nearest centimetre.",null,null,null,null,null,null,null,null,null,null,null,null,null,null,null,null,null,null,null,null,"cm",null,null,null,null,null,null,null,null,null,null,null,null,null,null,null,null,null,null,null,null,null,"H"]
[]
[]
[null,null,"(b)    Is the ladder safe to use ? "]